bitfinex-derivatives/quotes_BNBF0:USTF0_20250904
["timestamp","ask_amount","ask_price","bid_price","bid_amount"]
[1756952708110,2.620247,854.77,853.21,1.31066994]
[1756952708414,2.620247,854.77,853.22,1.31066994]
[1756952708711,2.620247,854.77,853.23,1.31066994]
[1756952709014,2.620247,854.77,853.24,1.31066994]
[1756952709213,2.620247,854.73,853.25,1.31066994]
[1756952709415,2.620247,854.73,853.26,1.31066994]
[1756952709612,2.620247,854.73,853.27,1.31066994]
[1756952709915,2.620247,854.73,853.28,1.31066994]
[1756952710117,2.620247,854.73,853.29,0.58609576]
[1756952710412,2.620247,854.61,853.3,0.58609576]
[1756952710615,2.620247,854.61,853.31,0.58610719]
[1756952710816,2.620247,854.61,853.32,0.58610719]
[1756952711013,2.620247,854.61,853.33,0.58610719]
[1756952711316,2.620247,854.61,853.34,0.58610719]
[1756952711616,2.620247,854.61,853.35,0.58610719]
[1756952711815,2.620247,854.49,852.84,0.79045571]
[1756952712018,2.620247,854.49,852.85,1.30856739]
[1756952712215,2.620247,854.49,852.86,1.30856739]
[1756952712413,2.620247,854.47,852.87,1.30856739]
[1756952712613,2.620247,854.47,852.88,1.30856739]
[1756952712816,2.620247,854.38,852.89,1.30856739]
[1756952713118,2.620247,854.38,852.9,1.30856739]
[1756952713413,2.620247,854.34,852.91,1.30856739]
[1756952713717,2.620247,854.34,852.92,1.30856739]
[1756952713917,2.620247,854.33,852.93,1.30856739]
[1756952714114,2.620247,854.33,852.94,1.30856739]
[1756952714417,2.620247,854.33,852.95,1.30856739]
[1756952714618,2.620247,854.33,852.96,1.30856739]
[1756952714817,2.620247,854.33,852.97,1.30856739]
[1756952715116,2.620247,854.33,852.98,1.30856739]
[1756952715314,2.620247,854.33,852.99,1.30856739]
[1756952715514,2.620247,854.33,853.0,1.30856739]
[1756952715716,2.620247,854.33,853.01,1.30856739]
[1756952715914,2.620247,854.33,853.02,1.30856739]
[1756952716114,2.620247,854.33,853.03,1.30856739]
[1756952716313,2.620247,854.33,853.04,1.30856739]
[1756952716515,2.620247,854.28,853.05,1.30856739]
[1756952716719,2.620247,854.28,853.06,1.30856739]
[1756952716917,2.620247,854.26,853.07,1.30856739]
[1756952717122,2.620247,854.26,853.08,1.30856739]
[1756952717420,2.620247,854.29,853.09,1.30856739]
[1756952717720,2.620247,854.29,852.87,0.79045571]
[1756952717721,2.620247,854.29,853.1,1.30856739]
[1756952718016,2.620247,854.29,853.11,1.30856739]
[1756952718220,2.620247,854.29,853.12,1.30856739]
[1756952718417,2.620247,854.29,853.13,0.58610719]
[1756952718620,2.620247,854.29,853.14,0.58610719]
[1756952718820,2.620247,854.29,853.15,0.58610719]
[1756952719019,2.620247,854.28,853.16,0.58610719]
[1756952719319,2.620247,854.28,853.17,0.58610719]
[1756952719521,2.620247,854.28,853.18,0.58610719]
[1756952719821,2.620247,854.28,853.19,0.58610719]
[1756952720019,2.620247,854.28,853.2,0.58610719]
[1756952720218,2.620247,854.28,853.21,1.30845482]
[1756952720520,2.620247,854.28,853.22,1.30845482]
[1756952720722,3.6683458,854.56,853.23,1.30845482]
[1756952720920,2.620247,854.66,853.24,1.30845482]
[1756952721123,2.620247,854.66,853.25,1.30845482]
[1756952721419,2.620247,854.66,853.26,1.30845482]
[1756952721621,2.620247,854.67,853.27,1.30845482]
[1756952721820,2.620247,854.67,853.28,1.30845482]
[1756952722018,2.620247,854.67,853.29,1.30845482]
[1756952722222,2.620247,854.67,853.3,1.30845482]
[1756952722426,2.620247,854.67,853.31,1.30845482]
[1756952722622,0.20376079,854.79,853.32,1.30845482]
[1756952722623,2.620247,854.66,853.32,1.30845482]
[1756952722924,2.620247,854.66,853.33,0.58610719]
[1756952723121,2.620247,854.66,853.34,0.58610719]
[1756952723327,2.620247,854.66,853.35,0.58610719]
[1756952723527,2.620247,854.66,853.36,0.58610719]
[1756952723828,2.620247,854.65,853.37,0.58610719]
[1756952724024,2.620247,854.65,853.38,0.58610719]
[1756952724226,2.620247,854.65,853.39,0.58610719]
[1756952724428,2.620247,854.65,853.02,0.79045571]
[1756952724628,2.620247,854.65,853.03,1.30841337]
[1756952724826,2.620247,854.65,853.02,0.79045571]
[1756952724827,2.620247,854.65,853.04,1.30841337]
[1756952725026,2.620247,854.65,853.05,1.30841337]
[1756952725225,2.620247,854.65,853.06,1.30841337]
[1756952725429,2.620247,854.65,853.07,1.30841337]
[1756952725630,2.620247,854.65,853.08,1.30841337]
[1756952725826,2.620247,854.66,853.09,1.30841337]
[1756952726030,2.620247,854.66,853.1,1.30841337]
[1756952726226,2.620247,854.76,853.11,1.30841337]
[1756952726428,2.620247,854.76,853.12,1.30841337]
[1756952726628,2.620247,854.76,853.13,1.30841337]
[1756952726930,2.82400779,854.79,853.14,1.30841337]
[1756952727227,2.620247,854.78,853.15,1.30841337]
[1756952727436,2.620247,854.78,853.16,1.30841337]
[1756952727730,2.620247,854.78,853.17,1.30841337]
[1756952727931,2.620247,854.78,853.18,1.30841337]
[1756952728129,2.620247,854.78,853.19,1.30841337]
[1756952728327,2.620247,854.78,853.2,1.30841337]
[1756952728530,2.620247,854.78,853.21,1.30841337]
[1756952728728,2.620247,854.78,853.22,1.30841337]
[1756952728927,2.620247,854.78,853.23,1.30841337]
[1756952729131,2.620247,854.78,853.24,1.30841337]
[1756952729427,2.620247,854.77,853.25,1.30841337]
[1756952729627,2.620247,854.77,853.26,1.30841337]
[1756952729828,2.620247,854.77,853.27,1.30841337]
[1756952730030,2.620247,854.78,853.28,1.30841337]
[1756952730228,2.620247,854.78,853.29,0.58610724]
[1756952730533,2.620247,854.67,853.3,0.58610724]
[1756952730729,2.620247,854.67,853.31,0.58610724]
[1756952730928,2.620247,854.58,853.32,0.58610724]
[1756952731232,2.620247,854.58,853.33,0.58610724]
[1756952731429,2.620247,854.57,853.34,0.58610724]
[1756952731630,2.620247,854.57,852.9,0.79045571]
[1756952731936,2.620247,854.57,852.91,1.30839618]
[1756952732130,2.620247,854.57,852.92,1.30839618]
[1756952732334,2.620247,854.57,852.93,1.30839618]
[1756952732630,2.620247,854.56,852.94,1.30839618]
[1756952732830,2.620247,854.56,852.95,1.30839618]
[1756952733033,2.620247,854.61,852.96,1.30839618]
[1756952733230,2.620247,854.61,852.89,0.79045571]
[1756952733231,2.620247,854.61,852.97,1.30839618]
[1756952733530,2.620247,854.61,852.98,1.30839618]
[1756952733734,2.620247,854.61,852.99,1.30839618]
[1756952734033,2.620247,854.61,853.0,1.30839618]
[1756952734231,2.620247,854.61,853.01,1.30839618]
[1756952734435,2.620247,854.61,853.02,1.30839618]
[1756952734632,2.620247,854.61,853.03,1.30839618]
[1756952734936,2.620247,854.61,852.72,1.0501474]
[1756952734937,2.620247,854.61,853.04,1.30839618]
[1756952735135,2.620247,854.69,853.05,1.30839618]
[1756952735332,2.620247,854.69,853.06,1.30839618]
[1756952735537,2.620247,854.69,853.07,1.30839618]
[1756952735735,2.620247,854.69,852.89,0.79045571]
[1756952735736,2.620247,854.69,853.08,1.30839618]
[1756952735933,2.620247,854.69,853.09,1.30839618]
[1756952736136,2.620247,854.62,853.1,1.30839618]
[1756952736332,2.620247,854.62,853.11,1.30839618]
[1756952736638,2.620247,854.59,853.12,1.30839618]
[1756952736835,2.620247,854.59,853.13,1.30839618]
[1756952737038,2.620247,854.59,853.14,1.30839618]
[1756952737235,2.620247,854.59,853.15,1.30839618]
[1756952737438,2.620247,854.59,853.16,1.30839618]
[1756952737637,2.620247,854.58,853.17,1.30839618]
[1756952737834,2.620247,854.58,853.18,1.30839618]
[1756952738135,2.620247,854.58,853.19,1.30839618]
[1756952738338,2.620247,854.58,853.2,1.30839618]
[1756952738538,2.620247,854.58,853.21,1.30839618]
[1756952738735,2.620247,854.59,853.22,1.30839618]
[1756952739038,2.620247,854.59,853.23,0.58611343]
[1756952739238,2.620247,854.62,853.24,0.58611343]
[1756952739439,2.620247,854.62,853.25,0.58611343]
[1756952739636,2.620247,854.62,852.91,0.79045571]
[1756952739838,2.620247,854.61,852.92,1.308724]
[1756952740041,2.620247,854.61,852.93,1.308724]
[1756952740240,2.620247,854.63,852.94,1.308724]
[1756952740443,2.620247,854.63,852.95,1.308724]
[1756952740643,2.620247,854.63,852.96,1.308724]
[1756952740943,0.20376079,854.79,852.97,1.308724]
[1756952740944,2.620247,854.62,852.97,1.308724]
[1756952741238,2.620247,854.63,852.98,1.308724]
[1756952741441,2.620247,854.63,852.99,1.308724]
[1756952741639,2.620247,854.63,853.0,1.308724]
[1756952741837,2.620247,854.63,853.01,1.308724]
[1756952742040,2.620247,854.63,853.02,1.308724]
[1756952742241,2.620247,854.63,853.03,1.308724]
[1756952742443,2.620247,854.62,853.04,1.308724]
[1756952742641,2.620247,854.62,853.05,1.308724]
[1756952742839,2.620247,854.62,853.06,1.308724]
[1756952743141,2.620247,854.58,853.07,1.308724]
[1756952743440,2.620247,854.57,853.08,1.308724]
[1756952743640,2.620247,854.57,853.09,1.308724]
[1756952743844,2.620247,854.57,853.1,1.308724]
[1756952744044,2.620247,854.57,853.11,1.308724]
[1756952744244,2.620247,854.57,853.12,1.308724]
[1756952744440,2.620247,854.56,853.13,1.308724]
[1756952744746,2.620247,854.56,853.14,1.308724]
[1756952744939,2.620247,854.5,853.15,1.308724]
[1756952745244,2.620247,854.5,853.16,1.308724]
[1756952745544,2.620247,854.48,853.17,1.308724]
[1756952745744,2.620247,854.48,853.18,1.30873013]
[1756952745944,2.620247,854.48,852.97,0.79045571]
[1756952745945,2.620247,854.48,853.19,1.30873013]
[1756952746145,2.620247,854.48,853.2,1.30873013]
[1756952746344,2.620247,854.48,853.21,1.30873013]
[1756952746544,2.620247,854.48,853.22,1.30873013]
[1756952746844,2.620247,854.48,853.23,1.30873013]
[1756952747039,2.620247,854.48,853.24,1.30873013]
[1756952747341,2.620247,854.48,853.25,1.30873013]
[1756952747544,2.620247,854.48,853.26,1.30873013]
[1756952747742,2.620247,854.48,853.27,1.30873013]
[1756952747943,2.620247,854.48,853.28,0.58611972]
[1756952748141,2.620247,854.49,853.29,0.58611972]
[1756952748345,2.620247,854.49,853.3,0.58611972]
[1756952748542,2.620247,854.45,853.31,0.58611972]
[1756952748747,2.620247,854.45,853.32,0.58611972]
[1756952748949,2.620247,854.45,853.33,0.58611972]
[1756952749242,3.6683458,854.77,853.34,0.58611972]
[1756952749243,2.620247,854.4,853.34,0.58611972]
[1756952749546,2.620247,854.4,853.35,0.58611972]
[1756952749747,3.6683458,854.77,852.97,0.79045571]
[1756952749748,2.620247,854.56,853.36,0.58611972]
[1756952749947,2.620247,854.56,853.37,0.58611972]
[1756952750243,0.20376079,854.79,853.38,1.30582843]
[1756952750446,0.20376079,854.79,853.39,0.58611972]
[1756952750748,0.20376079,854.79,853.4,0.58611972]
[1756952750949,0.20376079,854.79,853.41,0.58611972]
[1756952751149,0.20376079,854.79,853.42,0.58611972]
[1756952751349,0.20376079,854.79,853.43,0.58611972]
[1756952751548,0.20376079,854.79,853.44,0.58611972]
[1756952751745,0.20376079,854.79,853.45,0.58611972]
[1756952752046,0.20376079,854.79,853.46,0.58611972]
[1756952752349,0.20376079,854.79,853.47,0.58611972]
[1756952752549,0.20376079,854.79,853.48,0.58611972]
[1756952752746,0.20376079,854.79,853.49,0.58611972]
[1756952753046,0.20376079,854.79,853.5,0.58611972]
[1756952753249,0.20376079,854.79,853.51,0.58611972]
[1756952753550,0.20376079,854.79,852.84,0.79045571]
[1756952753849,0.20376079,854.79,852.85,1.305842]
[1756952754048,0.20376079,854.79,852.86,1.305842]
[1756952754246,0.20376079,854.79,852.87,1.305842]
[1756952754545,0.20376079,854.79,852.88,1.305842]
[1756952754749,0.20376079,854.79,852.89,1.305842]
[1756952754945,0.20376079,854.79,852.9,1.305842]
[1756952755148,0.20376079,854.79,852.91,1.305842]
[1756952755350,0.20376079,854.79,852.92,1.305842]
[1756952755545,0.20376079,854.79,852.93,1.305842]
[1756952755744,0.20376079,854.79,852.94,1.305842]
[1756952755945,0.20376079,854.79,852.95,1.305842]
[1756952756149,0.20376079,854.79,852.96,1.305842]
[1756952756346,0.20376079,854.79,852.97,1.305842]
[1756952756548,0.20376079,854.79,852.98,1.305842]
[1756952756747,0.20376079,854.79,852.99,1.305842]
[1756952756951,0.20376079,854.79,853.0,1.305842]
[1756952757148,0.20376079,854.79,853.01,1.305842]
[1756952757449,0.20376079,854.79,853.02,1.305842]
[1756952757649,0.20376079,854.79,853.03,1.305842]
[1756952757948,0.20376079,854.79,853.04,1.305842]
[1756952758152,0.20376079,854.79,853.05,1.305842]
[1756952758352,0.20376079,854.79,853.06,1.305842]
[1756952758649,0.20376079,854.79,853.07,1.305842]
[1756952758847,0.20376079,854.79,853.08,1.305842]
[1756952759053,0.20376079,854.79,853.09,1.305842]
[1756952759352,0.20376079,854.79,853.1,1.305842]
[1756952759649,0.20376079,854.79,853.11,1.305842]
[1756952759854,0.20376079,854.79,853.12,1.305842]
[1756952760052,0.20376079,854.79,853.13,1.305842]
[1756952760353,0.20376079,854.79,853.14,1.305842]
[1756952760549,2.620247,854.76,853.15,1.305842]
[1756952760752,2.620247,854.76,853.16,1.305842]
[1756952760950,2.620247,854.76,853.17,1.305842]
[1756952761149,2.620247,854.76,853.18,1.305842]
[1756952761351,2.620247,854.76,853.19,0.58611864]
[1756952761549,0.20376079,854.79,853.2,1.30587135]
[1756952761750,0.20376079,854.79,853.21,1.30587135]
[1756952762052,0.20376079,854.79,853.22,1.30587135]
[1756952762249,0.20376079,854.79,853.23,0.58611864]
[1756952762451,0.20376079,854.79,853.24,0.58611864]
[1756952762654,0.20376079,854.79,853.25,0.58611864]
[1756952762852,0.20376079,854.79,853.26,0.58611864]
[1756952763050,0.20376079,854.79,853.27,0.58611864]
[1756952763254,0.20376079,854.79,853.28,0.58611864]
[1756952763452,0.20376079,854.79,853.29,0.58611864]
[1756952763655,0.20376079,854.79,853.3,0.58611864]
[1756952763853,0.20376079,854.79,853.31,0.58611864]
[1756952764053,0.20376079,854.79,853.32,0.58611864]
[1756952764356,0.20376079,854.79,853.33,0.58611864]
[1756952764557,0.20376079,854.79,853.34,0.58611864]
[1756952764858,0.20376079,854.79,853.35,0.58611864]
[1756952765057,0.20376079,854.79,853.36,0.58611864]
[1756952765253,0.20376079,854.79,853.37,0.58611864]
[1756952765450,0.20376079,854.79,853.38,0.58611864]
[1756952765654,0.20376079,854.79,853.39,0.58611864]
[1756952765855,0.20376079,854.79,853.4,0.58611864]
[1756952766053,0.20376079,854.79,853.41,0.58611864]
[1756952766256,0.20376079,854.79,853.42,0.58611864]
[1756952766453,0.20376079,854.79,853.43,0.58611864]
[1756952766656,0.20376079,854.79,852.61,0.79097538]
[1756952766657,0.20376079,854.79,853.44,0.58611864]
[1756952766856,0.20376079,854.79,853.45,0.58611864]
[1756952767054,0.20376079,854.79,853.46,0.58611864]
[1756952767253,0.20376079,854.79,852.61,0.79097538]
[1756952767453,0.20376079,854.79,852.62,1.30578309]
[1756952767657,0.20376079,854.79,852.63,1.30578309]
[1756952767856,0.20376079,854.79,852.64,1.30578309]
[1756952768056,0.20376079,854.79,852.65,1.30578309]
[1756952768254,0.20376079,854.79,852.66,1.30578309]
[1756952768453,0.20376079,854.79,852.61,0.79097538]
[1756952768454,0.20376079,854.79,852.67,1.30578309]
[1756952768658,0.20376079,854.79,852.68,1.30578309]
[1756952768859,0.20376079,854.79,852.69,1.30578309]
[1756952769061,0.20376079,854.79,852.7,1.30578309]
[1756952769259,0.20376079,854.79,852.71,1.30578309]
[1756952769457,0.20376079,854.79,852.72,1.30578309]
[1756952769656,0.20376079,854.79,852.73,1.30578309]
[1756952769860,0.20376079,854.79,852.74,1.30578309]
[1756952770160,0.20376079,854.79,852.75,1.30578309]
[1756952770356,0.20376079,854.79,852.76,1.30578309]
[1756952770557,0.20376079,854.79,852.77,1.30578309]
[1756952770757,0.20376079,854.79,852.78,1.30578309]
[1756952770961,0.20376079,854.79,852.79,1.30578309]
[1756952771162,0.20376079,854.79,852.8,1.30578309]
[1756952771456,0.20376079,854.79,852.42,0.20382703]
[1756952771457,0.20376079,854.79,852.81,1.30578309]
[1756952771661,0.20376079,854.79,852.82,1.30578309]
[1756952771861,0.20376079,854.79,852.75,0.79097538]
[1756952771862,0.20376079,854.79,852.83,1.30578309]
[1756952772063,0.20376079,854.79,852.84,1.30578309]
[1756952772361,0.20376079,854.79,852.85,1.30578309]
[1756952772555,0.20376079,854.79,852.86,1.30578309]
[1756952772759,0.20376079,854.79,852.87,1.30578309]
[1756952773061,0.20376079,854.79,852.88,1.30578309]
[1756952773260,0.20376079,854.79,852.89,1.30578309]
[1756952773464,0.20376079,854.79,852.9,1.30578309]
[1756952773664,0.20376079,854.79,852.91,1.30578309]
[1756952773863,0.20376079,854.79,852.92,1.30578309]
[1756952774064,0.20376079,854.79,852.93,1.30578309]
[1756952774265,0.20376079,854.79,852.94,1.30578309]
[1756952774565,0.20376079,854.79,852.95,1.30578309]
[1756952774763,0.20376079,854.79,852.96,1.30578309]
[1756952775062,0.20376079,854.79,852.97,1.30578309]
[1756952775267,0.20376079,854.79,852.98,1.30578309]
[1756952775464,0.20376079,854.79,852.99,1.30578309]
[1756952775667,0.20376079,854.79,853.0,1.30578309]
[1756952775868,0.20376079,854.79,853.01,1.30578309]
[1756952776065,0.20376079,854.79,853.02,1.30578309]
[1756952776269,0.20376079,854.79,853.03,1.30578309]
[1756952776466,0.20376079,854.79,853.04,1.30578309]
[1756952776666,0.20376079,854.79,853.05,1.30578309]
[1756952776866,0.20376079,854.79,853.06,1.30578309]
[1756952777171,0.20376079,854.79,853.07,1.30578309]
[1756952777371,0.20376079,854.79,853.08,1.30578309]
[1756952777571,0.20376079,854.79,853.09,1.30638516]
[1756952777867,0.20376079,854.79,853.1,1.30638516]
[1756952778068,0.20376079,854.79,853.11,1.30638516]
[1756952778372,0.20376079,854.79,853.12,1.30638516]
[1756952778671,0.20376079,854.79,853.13,1.30638516]
[1756952778865,0.20376079,854.79,853.14,1.30638516]
[1756952779071,0.20376079,854.79,853.15,1.30638516]
[1756952779268,0.20376079,854.79,853.16,1.30638516]
[1756952779469,0.20376079,854.79,853.17,1.30638516]
[1756952779668,0.20376079,854.79,853.18,1.30638516]
[1756952779867,0.20376079,854.79,853.19,1.30638516]
[1756952780171,0.20376079,854.79,853.2,1.30638516]
[1756952780368,0.20376079,854.79,853.21,1.30638516]
[1756952780568,0.20376079,854.79,853.22,1.30638516]
[1756952780770,0.20376079,854.79,853.23,1.30638516]
[1756952780968,2.620247,854.77,853.24,0.58614188]
[1756952781269,3.6683458,854.64,853.25,0.58614188]
[1756952781472,3.6683458,854.64,853.26,0.58614188]
[1756952781473,2.620247,854.37,853.26,0.58614188]
[1756952781672,2.620247,854.37,852.85,0.79073763]
[1756952781873,2.620247,854.37,852.86,1.30644127]
[1756952782073,2.620247,854.51,852.87,1.30644127]
[1756952782274,2.620247,854.51,852.88,1.30644127]
[1756952782474,2.620247,854.52,852.89,1.30644127]
[1756952782675,2.620247,854.52,852.9,1.30644127]
[1756952782876,2.620247,854.52,852.91,1.30644127]
[1756952783076,2.620247,854.52,852.92,1.30644127]
[1756952783277,2.620247,854.52,852.93,1.30644127]
[1756952783478,2.620247,854.52,852.94,1.30644127]
[1756952783772,2.620247,854.52,852.95,1.30644127]
[1756952783977,0.20376079,854.79,852.96,1.30644127]
[1756952783978,2.620247,854.51,852.96,1.30644127]
[1756952784272,2.620247,854.51,852.97,1.30644127]
[1756952784472,2.620247,854.51,852.98,1.30644176]
[1756952784677,2.620247,854.51,852.99,1.30644176]
[1756952784875,2.620247,854.51,853.0,1.30644176]
[1756952785074,2.620247,854.51,853.01,1.30644176]
[1756952785273,2.620247,854.51,853.02,1.30644176]
[1756952785475,2.620247,854.51,853.03,1.30644176]
[1756952785677,2.620247,854.58,853.04,1.30644176]
[1756952785877,2.620247,854.58,852.81,0.79073763]
[1756952785878,2.620247,854.58,853.05,1.30644176]
[1756952786077,2.620247,854.58,853.06,1.30644176]
[1756952786375,2.620247,854.58,853.07,1.30644176]
[1756952786675,2.620247,854.58,853.08,1.30644176]
[1756952786875,2.620247,854.58,853.09,1.30644176]
[1756952787079,2.620247,854.58,853.1,1.30644176]
[1756952787278,2.620247,854.58,852.42,1.77904813]
[1756952787279,2.620247,854.58,853.11,1.30644176]
[1756952787477,2.620247,854.58,853.12,1.30644176]
[1756952787679,2.620247,854.58,853.13,1.30644176]
[1756952787876,2.620247,854.58,853.14,0.58618801]
[1756952788075,2.620247,854.58,852.79,0.79073763]
[1756952788076,2.620247,854.58,853.15,0.58618801]
[1756952788280,2.620247,854.58,852.79,0.79073763]
[1756952788579,2.620247,854.58,852.8,1.30609298]
[1756952788777,2.620247,854.58,852.81,1.30609298]
[1756952789079,2.620247,854.58,852.82,1.30609298]
[1756952789277,2.620247,854.58,852.83,1.30609298]
[1756952789480,2.620247,854.58,852.84,1.30609298]
[1756952789677,2.620247,854.58,852.85,1.30609298]
[1756952789977,2.620247,854.58,852.86,1.30609298]
[1756952790277,2.620247,854.59,852.87,1.30609298]
[1756952790476,2.620247,854.59,852.88,1.30609298]
[1756952790680,2.620247,854.59,852.89,1.30609298]
[1756952790879,2.620247,854.59,852.9,1.30609298]
[1756952791080,2.620247,854.59,852.91,1.30609298]
[1756952791377,2.620247,854.54,852.92,1.30609298]
[1756952791580,2.620247,854.54,852.93,1.30609298]
[1756952791777,2.620247,854.41,852.94,1.30609298]
[1756952791978,2.620247,854.41,852.95,1.30609298]
[1756952792277,2.620247,854.41,852.96,1.30609298]
[1756952792481,2.620247,854.41,852.97,1.30609298]
[1756952792679,2.620247,854.41,852.98,1.30609298]
[1756952792882,2.620247,854.41,852.99,1.30609298]
[1756952793082,2.620247,854.41,853.0,1.30609298]
[1756952793382,2.620247,854.42,853.01,1.30609298]
[1756952793579,2.620247,854.42,853.02,1.30609298]
[1756952793777,2.620247,854.42,853.03,1.30609298]
[1756952793976,2.620247,854.42,853.04,1.30609298]
[1756952794179,2.620247,854.42,853.05,1.30609298]
[1756952794381,2.620247,854.42,853.06,1.30609298]
[1756952794581,2.620247,854.42,853.07,1.30609298]
[1756952794781,2.620247,854.42,853.08,1.30609298]
[1756952794976,2.620247,854.42,853.09,1.30609298]
[1756952795181,2.620247,854.42,853.1,1.30609298]
[1756952795377,2.620247,854.42,853.11,1.30609298]
[1756952795584,2.620247,854.42,852.84,0.79073763]
[1756952795779,2.620247,854.42,852.85,1.30590888]
[1756952795981,2.620247,854.21,852.86,1.30590888]
[1756952796181,2.620247,854.21,852.87,1.30590888]
[1756952796383,2.620247,854.21,852.88,1.30590888]
[1756952796582,2.620247,854.27,852.89,1.30590888]
[1756952796780,2.620247,854.27,852.9,1.30590888]
[1756952796980,3.6683458,854.56,852.91,1.30590888]
[1756952797182,3.6683458,854.56,852.92,1.30590888]
[1756952797381,3.6683458,854.56,852.93,1.30590888]
[1756952797587,3.6683458,854.56,852.94,1.30590888]
[1756952797786,2.620247,854.58,852.95,1.30590888]
[1756952797986,2.620247,854.58,852.96,1.30590888]
[1756952798187,2.620247,854.58,852.97,1.30590888]
[1756952798383,2.620247,854.58,852.98,1.30590888]
[1756952798587,2.620247,854.58,852.99,1.30590888]
[1756952798887,2.620247,854.58,853.0,1.30590888]
[1756952799085,2.620247,854.58,853.01,1.30590888]
[1756952799283,2.620247,854.58,853.02,1.30590888]
[1756952799488,2.620247,854.58,853.03,1.30590888]
[1756952799683,2.620247,854.58,852.79,0.79073763]
[1756952799684,2.620247,854.58,853.04,1.30590888]
[1756952799888,2.620247,854.58,853.05,1.30590888]
[1756952800083,2.620247,854.58,853.06,1.30590888]
[1756952800286,0.20376079,854.79,853.07,1.30590888]
[1756952800287,2.620247,854.54,853.07,1.30590888]
[1756952800485,2.620247,854.54,853.08,1.30590888]
[1756952800691,2.620247,854.55,853.09,0.58619332]
[1756952800889,2.620247,854.55,853.1,0.58619332]
[1756952801088,2.620247,854.55,853.11,0.58619332]
[1756952801289,2.620247,854.6,853.12,0.58619332]
[1756952801488,2.620247,854.6,853.13,0.58619332]
[1756952801686,2.620247,854.6,853.14,0.58619332]
[1756952801889,2.620247,854.6,853.15,0.58619332]
[1756952802088,2.620247,854.6,853.16,0.58619332]
[1756952802286,2.620247,854.59,853.17,0.58619332]
[1756952802489,2.620247,854.59,853.18,0.58619332]
[1756952802692,2.620247,854.59,853.19,0.58619332]
[1756952802889,2.620247,854.59,853.2,0.58619332]
[1756952803191,2.620247,854.59,853.21,0.58619332]
[1756952803390,2.620247,854.59,853.22,0.58619332]
[1756952803589,2.620247,854.59,853.23,0.58619332]
[1756952803790,2.620247,854.59,853.24,0.58619332]
[1756952804092,2.620247,854.59,853.25,0.58619332]
[1756952804393,2.620247,854.59,853.26,0.58619332]
[1756952804593,2.620247,854.59,853.27,0.58619332]
[1756952804793,2.620247,854.57,852.72,0.79073763]
[1756952805090,2.620247,854.57,852.73,1.30576223]
[1756952805291,2.620247,854.57,852.74,1.30576223]
[1756952805492,2.620247,854.57,852.75,1.30576223]
[1756952805698,2.620247,854.57,852.76,1.30576223]
[1756952805897,2.620247,854.57,852.77,1.30576223]
[1756952806098,2.620247,854.57,852.78,1.30576223]
[1756952806295,2.620247,854.56,852.79,1.30576223]
[1756952806495,2.620247,854.56,852.8,1.30576223]
[1756952806695,2.620247,854.56,852.81,1.30576223]
[1756952806897,2.620247,854.39,852.82,1.30576223]
[1756952807102,2.620247,854.39,852.83,1.30576223]
[1756952807305,2.620247,854.39,852.84,1.30576223]
[1756952807602,2.620247,854.39,852.85,1.30576223]
[1756952807798,2.620247,854.39,852.86,1.30576223]
[1756952808006,2.620247,854.39,852.87,1.30576223]
[1756952808214,2.620247,854.39,852.88,1.30576223]
[1756952808398,2.620247,854.39,852.89,1.30576223]
[1756952808601,2.620247,854.39,852.9,1.30576223]
[1756952808804,2.620247,854.39,852.91,1.30576223]
[1756952809004,2.620247,854.39,852.92,1.30576223]
[1756952809205,2.620247,854.39,852.93,1.30576223]
[1756952809407,2.620247,854.39,852.94,1.30576223]
[1756952809604,2.620247,854.39,852.95,1.30576223]
[1756952809801,2.620247,854.39,852.96,1.30576223]
[1756952810007,2.620247,854.38,852.97,1.30576223]
[1756952810209,2.620247,854.38,852.98,1.30576223]
[1756952810406,2.620247,854.38,852.99,1.30576223]
[1756952810606,2.620247,854.65,853.0,1.30576223]
[1756952810807,2.620247,854.65,853.01,1.30576223]
[1756952811007,2.620247,854.62,853.02,1.30576223]
[1756952811207,2.620247,854.62,853.03,1.30576223]
[1756952811406,2.620247,854.62,853.04,1.30576223]
[1756952811611,2.620247,854.62,853.05,1.30576223]
[1756952811910,2.620247,854.62,853.06,1.30576223]
[1756952812210,2.620247,854.62,853.07,1.30576223]
[1756952812407,2.620247,854.62,853.08,1.30576223]
[1756952812608,2.620247,854.62,853.09,1.30576223]
[1756952812812,2.620247,854.62,853.1,1.30576223]
[1756952813009,2.620247,854.62,853.11,1.30576223]
[1756952813211,2.620247,854.62,853.12,0.58619966]